[Event "Austrian Championship 2022"]
[Site "Vienna"]
[Date "2022.08.12"]
[Round "1.11"]
[White "Leisch, Lukas"]
[Black "Teuschler, Barbara"]
[Result "1-0"]
[ECO "A20"]
[WhiteElo "2404"]
[BlackElo "2097"]
[Annotator "TA"]
[PlyCount "115"]
[EventDate "2022.08.12"]
[EventType "swiss"]
[EventCountry "AUT"]
[SourceTitle "playchess.com"]
[Source "ChessBase"]
[SourceQuality "1"]
[TimeControl "40/5400+30:1800+30"]

{[%evp 9,115,3,12,0,19,10,35,21,41,24,7,8,14,4,5,0,14,14,39,5,15,34,12,0,93,33,38,-89,-22,-320,-27,-62,-51,-50,-49,-46,20,20,20,20,20,20,20,29,32,32,32,4,4,4,4,0,11,11,11,6,7,6,14,13,10,12,22,12,18,8,17,17,19,14,28,29,35,8,8,0,0,0,0,0,0,0,0,0,882,738,868,862,1005,915,29967,29968,29970,29970,29968,29963,8139,3493,4978,5065,5065,5065,5065,5065,2404,1724,1366,1233]} 1. c4 {[%emt 0:00:03]} Nf6 {[%emt 0:00:39]} 2. g3 {[%emt 0:00:09]} e5 {[%emt 0:00:35]} 3. Bg2 {[%emt 0:00:08]} h6 {[%emt 0:00:56]} 4. a3 {[%emt 0:04:27]} c6 {[%emt 0:08:04]} 5. d4 {[%emt 0:01:31]} exd4 {[%emt 0:00:04]} 6. Qxd4 {[%emt 0:00:10] A20: English Opening: 1...e5.} d5 {[%emt 0:00:07]} 7. Nf3 {[%emt 0:06:41]} Be6 {[%emt 0:07:10]} 8. cxd5 {[%emt 0:00:44] White is slightly better.} Qxd5 {[%emt 0:06:05]} 9. Nc3 {[%emt 0:03:26] [#]} Qh5 $146 {[%emt 0:02:47]} ({Predecessor:} 9... Qa5 10. Bd2 Qb6 11. Na4 Qxd4 12. Nxd4 Bd5 13. O-O Bxg2 14. Kxg2 Be7 15. Nf5 g6 16. Nxe7 Kxe7 {½-½ (62) Laqua,C (1986)-Jahnz,F (2135) Playchess.com INT 2020}) 10. h3 {[%emt 0:07:42]} Nbd7 {[%emt 0:07:28]} 11. g4 {[%emt 0:21:46]} Qa5 {[%emt 0:14:06]} 12. O-O {[%emt 0:00:47]} Rd8 {[%emt 0:05:46]} 13. Qf4 {[%emt 0:06:32]} g5 {[%emt 0:09:41]} 14. Qe3 {[%emt 0:03:57]} Bc5 {[%emt 0:02:38]} 15. Qd3 {[%emt 0:00:03]} Qc7 {[%emt 0:06:12]} 16. b4 {[%emt 0:06:26]} Ne5 {[%emt 0:04:53]} (16... Be7 $11 {remains equal.}) 17. Qc2 {[%emt 0:00:21]} (17. Nb5 $1 $16 {[%cal Rb5c7]} cxb5 18. Qxb5+ Nfd7 19. bxc5) 17... Nxf3+ {[%emt 0:00:26]} 18. Bxf3 {[%emt 0:02:46] [#]} (18. exf3 $14 {was forced to keep a grip.} Bd6 19. Bb2) 18... Bd4 {[%emt 0:04:03]} ({Much worse is} 18... Qg3+ $6 19. Bg2 Bb6 20. Bb2 $15) (18... h5 $1 $17 {( -> ...Qg3+)} 19. bxc5 hxg4) 19. Kg2 {[%emt 0:05:31][%mdl 8192] Prevents Qg3+.} (19. Bg2 $11) 19... a6 $2 {[%emt 0:04:02]} (19... h5 $19 20. Nb5 Qe5 21. Nxd4 Rxd4) 20. Bb2 {[%emt 0:00:56][%cal Bc1b2,Bb2d4,Bd4c5,Bc5e3,Be3g5][%mdl 32]} h5 {[%emt 0:06:54][%cal Rh5g4]} 21. Rh1 $1 {[%emt 0:00:53]} hxg4 {[%emt 0:04:11]} 22. hxg4 {[%emt 0:00:17]} Ke7 {[%emt 0:03:41] [#]} ({Better is} 22... Rh4 $15 23. Rad1 Bxg4 24. Rxh4 Bxf3+ 25. exf3 gxh4) 23. Nb5 $1 $11 {[%emt 0:05:26]} axb5 {[%emt 0:00:16]} 24. Bxd4 {[%emt 0:00:01] Chess con chili.} Rxh1 {[%emt 0:00:51][%csl Gh1][%cal Rc7h2]} 25. Qc5+ {[%emt 0:09:07]} Qd6 {[%emt 0:00:29]} ({But not} 25... Ke8 26. Rxh1 Nd5 27. e3 $16) 26. Rxh1 {[%emt 0:00:02] Qxd6+ is the strong threat.} Qxc5 {[%emt 0:00:38]} 27. Bxc5+ {[%emt 0:00:02]} Kd7 $1 {[%emt 0:00:09]} 28. Rd1+ {[%emt 0:02:11]} (28. Kg3 $5 {[%cal Rh1d1]}) 28... Kc8 {[%emt 0:00:00]} 29. Rxd8+ {[%emt 0:00:07]} Kxd8 {[%emt 0:00:00][%mdl 4096] Endgame KBB-KBN} 30. Be3 {[%emt 0:00:33]} Nxg4 {[%emt 0:00:37]} 31. Bxg5+ {[%emt 0:00:01]} Kd7 {[%emt 0:00:03]} 32. Kg3 {[%emt 0:00:49]} Ne5 {[%emt 0:00:22]} 33. Be4 {[%emt 0:00:05]} Nc4 {[%emt 0:00:23]} 34. Bc1 {[%emt 0:00:02]} Kd6 {[%emt 0:02:01]} 35. Kf4 {[%emt 0:00:18]} Bd5 {[%emt 0:00:56]} 36. Bh7 {[%emt 0:00:46]} Be6 {[%emt 0:00:36]} 37. Ke4 {[%emt 0:00:42]} Bh3 {[%emt 0:00:32]} 38. Kd4 {[%emt 0:00:36][%cal Oa3a4]} Bf1 {[%emt 0:00:31]} 39. Bd3 {[%emt 0:02:34]} Ne5 {[%emt 0:00:33]} 40. Bf4 {[%emt 0:00:11]} f6 {[%emt 0:00:01]} 41. Ke4 {[%emt 0:39:16] And now Kf5 would win.} Ke6 {[%emt 0:30:48]} 42. Bxe5 {[%emt 0:00:37]} fxe5 {[%emt 0:00:04] KB-KB} 43. Kf3 {[%emt 0:00:07]} Kf6 {[%emt 0:00:00]} 44. Bh7 {[%emt 0:00:00]} Bh3 {[%emt 0:00:00]} 45. Ke4 {[%emt 0:00:00]} Bg2+ {[%emt 0:00:00]} 46. f3 {[%emt 0:00:00]} Ke6 $2 {[%emt 0:00:00][%mdl 8192]} (46... Bh3 $11) 47. Bf5+ $18 {[%emt 0:00:00]} Kf6 {[%emt 0:00:00]} 48. Bc8 {[%emt 0:00:00]} b6 {[%emt 0:00:00]} 49. Bd7 {[%emt 0:00:00]} c5 {[%emt 0:00:00]} 50. bxc5 {[%emt 0:00:00]} bxc5 {[%emt 0:00:00]} 51. Bxb5 {[%emt 0:00:00]} Ke6 {[%emt 0:00:00]} 52. Ba6 {[%emt 0:00:00]} Bf1 {[%emt 0:00:00]} 53. Bc8+ {[%emt 0:00:00]} (53. Bc4+ $142 Kd6 54. a4) 53... Kd6 {[%emt 0:00:00]} 54. Ke3 {[%emt 0:00:00]} c4 {[%emt 0:00:00]} 55. Bf5 {[%emt 0:00:00] Black must now prevent Kf2.} c3 {[%emt 0:00:00]} 56. Bc2 {[%emt 0:00:00]} Kc5 {[%emt 0:00:00]} 57. Kd3 {[%emt 0:00:00]} Kb5 {[%emt 0:00:00]} 58. Kxc3 {[%emt 0:00:00] Never resign too early!  Weighted Error Value: White=0.28 (precise) /Black=0.37} 1-0

[Event "Austrian Championship 2022"]
[Site "Vienna"]
[Date "2022.08.12"]
[Round "1.12"]
[White "Ernst, Robert"]
[Black "Kilgus, Georg"]
[Result "0-1"]
[ECO "E45"]
[WhiteElo "2001"]
[BlackElo "2386"]
[Annotator "TA"]
[PlyCount "48"]
[EventDate "2022.08.12"]
[EventType "swiss"]
[EventCountry "AUT"]
[SourceTitle "playchess.com"]
[Source "ChessBase"]
[SourceQuality "1"]
[TimeControl "40/5400+30:1800+30"]

{[%evp 14,48,2,0,0,0,0,-17,-25,-31,-33,-34,-34,-60,-58,-62,-66,-57,-59,-47,-47,-68,-22,-127,-129,-490,-484,-486,-482,-626,-641,-634,-618,-1749,-758,-725,-662]} 1. d4 {[%emt 0:00:04]} Nf6 {[%emt 0:00:05]} 2. c4 {[%emt 0:00:11]} e6 {[%emt 0:00:09]} 3. Nc3 {[%emt 0:00:14]} Bb4 {[%emt 0:00:02]} 4. e3 {[%emt 0:00:15]} b6 {[%emt 0:02:44]} 5. Nge2 {[%emt 0:00:56]} Ba6 {[%emt 0:00:19]} 6. a3 {[%emt 0:00:38]} Bxc3+ {[%emt 0:00:11] 6...Bxc3+ scores better than 6...Be7.} 7. Nxc3 {[%emt 0:00:09]} d5 {[%emt 0:00:10]} 8. cxd5 {[%emt 0:08:21] [#] Threatens to win with Bxa6.} Bxf1 {[%emt 0:01:56] E45: Nimzo-Indian: Rubinstein: 4...b6 5 Ne2 Ba6.} 9. Kxf1 {[%emt 0:01:12]} exd5 {[%emt 0:04:35]} 10. b4 {[%emt 0:01:28]} O-O {[%emt 0:01:52] The position is equal.} 11. Bb2 {[%emt 0:03:56] [#]} Re8 $146 {[%emt 0:03:50]} ({Predecessor:} 11... c6 12. g3 Re8 13. Kg2 Qe7 14. Qf3 a6 15. Rhc1 Nbd7 16. Rc2 Rac8 17. Rac1 Nf8 {0-1 (26) Kim,I (1900)-Viswanath,G (2101) San Francisco 2016}) 12. Rc1 {[%emt 0:02:40]} c6 {[%emt 0:13:40]} 13. b5 {[%emt 0:17:33]} a6 {[%emt 0:22:56]} 14. a4 {[%emt 0:10:07]} Qd7 {[%emt 0:00:26][%cal Rc6b5]} 15. Qb3 {[%emt 0:02:59]} c5 {[%emt 0:12:49]} 16. dxc5 {[%emt 0:04:58]} bxc5 {[%emt 0:00:04]} 17. Rd1 {[%emt 0:01:54][%cal Rc3d5]} c4 {[%emt 0:00:02]} (17... d4 $15 {deserves consideration.} 18. exd4 Qf5) 18. Qb4 {[%emt 0:01:44]} (18. Qc2 $1 $11) 18... Qf5 $17 {[%emt 0:03:34] [#] aiming for ...Ng4.} 19. Qc5 $2 {[%emt 0:15:58][%mdl 8192] Now White is beyond hope.} (19. Kg1 $17 {is tougher.}) 19... Qc2 $19 {[%emt 0:04:34] ( -> ...Ne4). Black is clearly winning.} 20. Qd4 {[%emt 0:08:08]} Qxb2 {[%emt 0:00:45]} 21. Rd2 {[%emt 0:01:41]} Qc1+ {[%emt 0:05:22]} 22. Rd1 {[%emt 0:00:01]} Qc2 {[%emt 0:00:07] And now ...axb5 would win.} 23. Nxd5 {[%emt 0:00:04]} Nxd5 {[%emt 0:00:40]} (23... Ne4 $142 24. Rd2 Nxd2+ 25. Ke1 Qc1+ 26. Ke2 Qxh1 27. Qxd2 Qxh2) 24. Qxd5 {[%emt 0:00:02]} Qxa4 {[%emt 0:00:07] Weighted Error Value: White=0.91/Black=0.32} 0-1

[Event "Austrian Championship 2022"]
[Site "Vienna"]
[Date "2022.08.12"]
[Round "1.13"]
[White "Sadilek, Peter"]
[Black "Hoegl, Emanuel"]
[Result "1-0"]
[ECO "E04"]
[WhiteElo "2330"]
[BlackElo "2094"]
[Annotator "TA"]
[PlyCount "71"]
[EventDate "2022.08.12"]
[EventType "swiss"]
[EventCountry "AUT"]
[SourceTitle "playchess.com"]
[Source "ChessBase"]
[SourceQuality "1"]
[TimeControl "40/5400+30:1800+30"]

{[%evp 11,71,0,3,-31,5,16,22,15,93,4,12,-30,-29,-15,-17,-131,-139,-104,-109,-124,-144,-158,-122,-148,-154,-245,80,125,110,106,100,93,243,237,252,241,366,122,506,524,504,449,483,495,515,450,652,645,669,709,694,660,1020,984,1411,1387,1247,670,3883,3579,29991,29992]} 1. d4 {[%emt 0:01:04]} d5 {[%emt 0:00:05]} 2. c4 {[%emt 0:00:59]} c6 {[%emt 0:00:04]} 3. Nf3 {[%emt 0:00:18]} Nf6 {[%emt 0:00:20]} 4. Nc3 {[%emt 0:00:55]} e6 {[%emt 0:00:06]} 5. g3 {[%emt 0:00:38]} dxc4 {[%emt 0:04:30]} 6. Bg2 {[%emt 0:00:05]} b5 {[%emt 0:01:40][%cal Bb7b5,Bb5b4,Bb4b3][%mdl 32]} 7. O-O {[%emt 0:00:06] E04: Open Catalan: 5 Nf3.} Be7 {[%emt 0:05:27]} 8. Ne5 {[%emt 0:01:12]} Nd5 {[%emt 0:00:16]} 9. a4 {[%emt 0:11:47][%mdl 1024] White has compensation. The position is equal.} f6 {[%emt 0:11:25]} (9... b4 $1 $11 10. Nxd5 cxd5) 10. Nf3 {[%emt 0:26:33] White is more active.} (10. e4 $1 $16 Nxc3 11. Qh5+ g6 12. Nxg6 Ne2+ 13. Kh1 hxg6 14. Qxh8+ Kd7 15. Qg7) 10... b4 $11 {[%emt 0:05:21]} 11. Ne4 {[%emt 0:00:12]} a5 {[%emt 0:01:32]} 12. Qc2 {[%emt 0:02:22]} Ba6 {[%emt 0:03:20]} 13. Nc5 {[%emt 0:01:23]} (13. Bh3 $11 {remains equal.}) 13... Bxc5 $17 {[%emt 0:06:32]} 14. dxc5 {[%emt 0:00:05]} Nd7 $1 {[%emt 0:04:25] [#]} 15. e4 $146 {[%emt 0:18:06]} ({Predecessor:} 15. Rd1 Nxc5 16. e4 O-O 17. exd5 cxd5 18. Be3 Nb3 19. Rab1 Qe8 20. Nd4 Nxd4 21. Rxd4 {0-1 (35) Mc Entee,T (2177)-Braunlich,T (2191) Ankeny 2006}) 15... b3 $1 {[%emt 0:14:55]} 16. Qd1 {[%emt 0:00:04] [#]} Nb4 {[%emt 0:00:07]} 17. Nd4 {[%emt 0:07:20]} Qe7 {[%emt 0:11:44]} 18. Bf4 {[%emt 0:09:52]} (18. Bd2 $17) 18... O-O-O $2 {[%emt 0:04:15]} (18... Nxc5 $19 {aiming for ...0-0-0.} 19. e5 O-O 20. exf6 Qxf6) 19. Bd6 $36 {[%emt 0:00:38][%mdl 2048] Black is under strong pressure.} Qf7 {[%emt 0:00:46] ...e5 is the strong threat.} 20. Qe1 {[%emt 0:06:18]} Ne5 {[%emt 0:08:42] [#]} (20... c3 $2 21. Qxc3 Bxf1 22. Rxf1 $18) 21. Qc3 {[%emt 0:03:00]} Kb7 {[%emt 0:06:26]} (21... Rhe8 $16) 22. f4 $18 {[%emt 0:02:02]} Ned3 {[%emt 0:03:02]} 23. e5 {[%emt 0:00:17][%cal Od4c6]} Rc8 {[%emt 0:02:44]} (23... Kc8 $142 24. Nxc6 Nxc6) 24. Rad1 $2 {[%emt 0:04:09]} (24. Nb5 $18 {and the rest is easy.}) 24... f5 $2 {[%emt 0:00:22][%mdl 8192] [#]} (24... h5 $16 {is more resistant.}) 25. Rxd3 $1 {[%emt 0:01:05][%mdl 512]} cxd3 {[%emt 0:02:13]} 26. Nxb3 {[%emt 0:00:07]} Ka8 {[%emt 0:02:22]} (26... d2 $2 27. Nxa5+ Ka8 28. Rd1 $18) 27. Nxa5 {[%emt 0:00:07]} Nd5 {[%emt 0:00:09]} 28. Qd2 {[%emt 0:00:34]} h5 {[%emt 0:00:53]} (28... g5 $142 29. Bxd5 (29. fxg5 h6 $18) 29... exd5 30. fxg5 h6 31. gxh6 Qe6) 29. b4 {[%emt 0:00:22][%cal Bb2b4,Bb4b5][%mdl 32]} h4 {[%emt 0:00:17]} 30. b5 {[%emt 0:01:30]} hxg3 {[%emt 0:00:26]} 31. hxg3 {[%emt 0:00:19]} ({Not} 31. bxa6 Qh5 32. hxg3 Qh2+ 33. Kf2 Rh3 34. Qxd3 Nxf4 $18) 31... cxb5 {[%emt 0:00:26]} 32. axb5 {[%emt 0:00:35] Black must now prevent Nc4.} Bxb5 {[%emt 0:00:27]} 33. Ra1 {[%emt 0:00:55] Nc4+ would kill now.} Qa7 {[%emt 0:00:50]} 34. Qb4 {[%emt 0:01:43]} Bc6 {[%emt 0:00:38]} 35. Qd4 {[%emt 0:00:01] Threatening mate with Nc4.} Rb8 {[%emt 0:00:26]} 36. Nxc6 {[%emt 0:00:28][%mdl 64] Pin.  Weighted Error Value: White=0.52/Black=0.82} 1-0

[Event "Austrian Championship 2022"]
[Site "Vienna"]
[Date "2022.08.12"]
[Round "1.14"]
[White "Scheffknecht, Philipp"]
[Black "Steindl, Johannes"]
[Result "1-0"]
[ECO "E81"]
[WhiteElo "2093"]
[BlackElo "2312"]
[Annotator "TA"]
[PlyCount "53"]
[EventDate "2022.08.12"]
[EventType "swiss"]
[EventCountry "AUT"]
[SourceTitle "playchess.com"]
[Source "ChessBase"]
[SourceQuality "1"]
[TimeControl "40/5400+30:1800+30"]

{[%evp 17,53,39,41,48,48,60,74,52,25,-6,48,53,65,50,91,33,172,159,150,154,164,164,167,176,250,247,233,206,315,265,272,262,350,346,420,412,500,478]} 1. d4 {[%emt 0:00:02]} Nf6 {[%emt 0:00:04]} 2. c4 {[%emt 0:00:08]} g6 {[%emt 0:00:04]} 3. f3 {[%emt 0:00:09]} Bg7 {[%emt 0:00:09]} 4. e4 {[%emt 0:00:06]} d6 {[%emt 0:00:04]} 5. Nc3 {[%emt 0:00:15]} O-O {[%emt 0:00:06]} 6. Be3 {[%emt 0:01:40]} c5 {[%emt 0:00:05]} 7. Nge2 {[%emt 0:00:55][%cal Bg1e2,Be2g3,Bg3f1][%mdl 32]} Nc6 {[%emt 0:00:08]} 8. d5 {[%emt 0:00:37]} Ne5 {[%emt 0:00:05]} 9. Ng3 {[%emt 0:00:11]} h5 {[%emt 0:00:05] Hoping for ...h4.} 10. Be2 {[%emt 0:00:15] E81: King's Indian: Sämisch: 6th move deviations (including 6 Be3 c6).} h4 {[%emt 0:00:05]} 11. Nf1 {[%emt 0:00:04]} e6 {[%emt 0:00:32]} 12. Bg5 {[%emt 0:05:59][%cal Be3g5,Bg5h4,Bh4e7,Be7d6,Bd6e5][%mdl 32] White is better.} (12. f4 Neg4 $11) 12... h3 {[%emt 0:06:07]} 13. g4 {[%emt 0:13:33] [#]} Qb6 $146 {[%emt 0:04:09]} (13... exd5 $11 14. Nxd5 Be6) ({Predecessor:} 13... exd5 14. Nxd5 Ned7 15. Qd2 Nb6 16. Nfe3 Be6 17. Rg1 Bxd5 18. cxd5 Re8 19. Nd1 Nbd7 {1-0 (47) Lee,M (2372)-Mei,A (2336) San Jose 2022}) 14. Qd2 $14 {[%emt 0:06:00]} Nh7 {[%emt 0:02:23]} 15. Bh4 {[%emt 0:06:53]} Qb4 {[%emt 0:01:09]} 16. Nb5 {[%emt 0:07:25]} (16. Ne3 $1 $16) 16... exd5 {[%emt 0:13:33] [#] Black cannot hold the game after this.} ({Black should try} 16... Qxd2+ $1 $14 17. Nxd2 g5) 17. Qxb4 $1 $18 {[%emt 0:03:56]} cxb4 {[%emt 0:00:05]} 18. cxd5 {[%emt 0:01:46]} f5 {[%emt 0:05:47]} 19. gxf5 {[%emt 0:05:00]} (19. Nxd6 $6 fxe4 20. fxe4 (20. Nxc8 Raxc8 21. fxe4 Nf6 $15) 20... Nf3+ 21. Bxf3 Rxf3 $14) 19... gxf5 {[%emt 0:00:15] [#]} 20. Be7 $1 {[%emt 0:09:35]} ({Don't take} 20. Nxd6 $6 fxe4 21. fxe4 Ng6 $14) 20... Rf7 {[%emt 0:06:18]} (20... fxe4 {was worth a try.} 21. Bxf8 (21. fxe4 Re8 $14) 21... Kxf8) 21. Bxd6 {[%emt 0:01:56]} fxe4 {[%emt 0:01:45]} 22. fxe4 {[%emt 0:01:20]} Bd7 {[%emt 0:02:39]} (22... Bg4 $142) 23. Rg1 {[%emt 0:09:08]} ({Weaker is} 23. Bxb4 Bxb5 24. Bxb5 Nf3+ 25. Kd1 Nf6 $14) 23... Bxb5 {[%emt 0:03:37]} 24. Bxe5 {[%emt 0:00:27]} Bxe2 {[%emt 0:00:06]} 25. Kxe2 {[%emt 0:02:51]} Nf6 {[%emt 0:05:13]} 26. Ng3 {[%emt 0:06:57] aiming for Nf5.} Nxd5 {[%emt 0:04:21]} 27. Nh5 {[%emt 0:00:55] Weighted Error Value: White=0.13 (very precise) /Black=0.40} ({Not} 27. exd5 Re8 28. Nf5 Rxe5+ 29. Ne3 Rfe7 $15) 1-0

[Event "Austrian Championship 2022"]
[Site "Vienna"]
[Date "2022.08.12"]
[Round "1.15"]
[White "Schernthaner, David"]
[Black "Dotzer, Lukas"]
[Result "1/2-1/2"]
[ECO "B48"]
[WhiteElo "2319"]
[BlackElo "2269"]
[Annotator "TA"]
[PlyCount "105"]
[EventDate "2022.08.12"]
[EventType "swiss"]
[EventCountry "AUT"]
[SourceTitle "playchess.com"]
[Source "ChessBase"]
[SourceQuality "1"]
[TimeControl "40/5400+30:1800+30"]

{[%evp 14,105,25,19,31,29,24,0,0,0,0,0,0,0,0,0,0,0,0,0,0,0,0,0,0,0,0,0,0,0,0,0,64,57,76,21,138,133,146,114,94,8,9,9,11,17,36,31,37,37,42,41,29,31,35,0,0,0,0,0,0,0,0,0,8,6,8,0,0,0,0,0,0,0,0,0,0,0,0,0,0,0,0,0,0,0,0,0,0,0,0,0,0,0]} 1. e4 {[%emt 0:00:03]} c5 {[%emt 0:00:06]} 2. Nf3 {[%emt 0:00:23]} e6 {[%emt 0:00:11]} 3. d4 {[%emt 0:00:06]} cxd4 {[%emt 0:00:06]} 4. Nxd4 {[%emt 0:00:04]} Nc6 {[%emt 0:00:08]} 5. Nc3 {[%emt 0:00:51]} Qc7 {[%emt 0:00:11]} 6. Be3 {[%emt 0:00:38]} a6 {[%emt 0:00:08]} 7. Qd2 {[%emt 0:01:30]} Nf6 {[%emt 0:00:12]} 8. O-O-O {[%emt 0:01:14]} Be7 {[%emt 0:00:34] is cutting edge theory. B48: Sicilian: Taimanov: 5 Nc3 Qc7 6 Be3 a6 without Be2.} 9. f3 {[%emt 0:01:24]} b5 {[%emt 0:00:41]} 10. g4 {[%emt 0:03:28][%cal Bg2g4,Bg4g5][%mdl 32] 10.Kb1 is not played anymore.} Nxd4 {[%emt 0:00:44]} 11. Bxd4 {[%emt 0:00:58]} Bb7 {[%emt 0:01:29]} 12. g5 {[%emt 0:01:35]} Nh5 {[%emt 0:02:03]} 13. Be5 {[%emt 0:02:04]} Qxe5 {[%emt 0:22:20]} 14. Qxd7+ {[%emt 0:00:06]} Kf8 {[%emt 0:00:05]} 15. Qxb7 {[%emt 0:00:12] Dancing on a razor blade.} Bxg5+ {[%emt 0:00:14]} 16. Kb1 {[%emt 0:00:15]} Qb8 {[%emt 0:00:46]} 17. Rd7 $36 {[%emt 0:03:36][%mdl 2048] White fights for an advantage.} Qxb7 {[%emt 0:00:43]} 18. Rxb7 {[%emt 0:00:05]} Bf6 {[%emt 0:26:15]} 19. a4 {[%emt 0:04:46]} Bxc3 {[%emt 0:04:11]} 20. bxc3 {[%emt 0:00:55]} bxa4 {[%emt 0:00:14]} 21. Bc4 {[%emt 0:00:08] [#]} Rd8 $146 {[%emt 0:11:45] Against Rd1} ({Predecessor:} 21... g6 22. Rd1 Rc8 23. Ba2 Rg8 24. Rd6 g5 25. Rxa6 Rg6 26. Raa7 Rf6 27. e5 Rxf3 28. Bxe6 {½-½ (41) Motylev,A (2698)-Hou,Y (2629) Biel 2014}) 22. Bxa6 {[%emt 0:23:32]} g6 {[%emt 0:00:39]} (22... Nf4 $11) 23. c4 $14 {[%emt 0:03:27]} Kg7 {[%emt 0:03:17]} 24. Bb5 {[%emt 0:05:02]} (24. Kb2 $16) 24... Rd4 {[%emt 0:15:10] [#]} (24... Nf4 $11) 25. Kb2 $1 $16 {[%emt 0:08:33]} Nf4 {[%emt 0:06:28]} 26. Ra1 {[%emt 0:01:18]} Ra8 {[%emt 0:02:46] [#]} 27. Rxa4 {[%emt 0:10:31]} (27. Kc3 $1 $16 {[%cal Rc3d4]} Ne2+ 28. Kb2) 27... Rxa4 $11 {[%emt 0:00:17]} 28. Bxa4 {[%emt 0:00:04] Hoping for Kb3.} Rxc4 $16 {[%emt 0:00:22][%mdl 4096] Endgame KRB-KRN} 29. Be8 {[%emt 0:00:21]} Kf8 {[%emt 0:01:26]} 30. Rxf7+ {[%emt 0:12:18]} Kxe8 {[%emt 0:00:05]} 31. Rxf4 $14 {[%emt 0:00:05] KR-KR} Ke7 {[%emt 0:01:03]} 32. Kb3 {[%emt 0:00:12]} Rd4 {[%emt 0:00:39]} 33. Rh4 {[%emt 0:02:03]} h5 {[%emt 0:00:15]} 34. Kc3 {[%emt 0:00:59]} e5 {[%emt 0:00:55] The position is equal.} 35. Rh3 {[%emt 0:00:05]} Kf6 {[%emt 0:00:49]} 36. Kb3 {[%emt 0:02:57]} Kg5 {[%emt 0:00:37]} 37. c3 {[%emt 0:01:29][%cal Bc2c3,Bc3c4,Bc4c5][%mdl 32]} Rd2 {[%emt 0:00:28]} 38. c4 {[%emt 0:04:46] Black must now prevent c5.} Kf4 {[%emt 0:00:34]} 39. c5 {[%emt 0:00:07]} Rd4 $1 {[%emt 0:00:21]} 40. Kc3 {[%emt 0:01:41] Prevents Rd2.} g5 {[%emt 0:00:36]} 41. Rxh5 {[%emt 0:31:23]} Kxf3 {[%emt 0:30:06]} 42. Rxg5 {[%emt 0:00:07]} Kxe4 {[%emt 0:00:14]} 43. h4 {[%emt 0:06:01][%cal Bh2h4,Bh4h5,Bh5h6,Bh6h7][%mdl 32] aiming for c6.} Kd5 {[%emt 0:00:31][%csl LRc5,LRh4]} 44. h5 {[%emt 0:00:14]} Rc4+ {[%emt 0:00:44]} 45. Kd3 {[%emt 0:00:36][%cal Og5e5]} Rxc5 {[%emt 0:00:36]} 46. h6 {[%emt 0:00:07] h7 would kill now.} Rc8 {[%emt 0:00:26]} 47. Ke3 {[%emt 0:00:40]} Ke6 {[%emt 0:00:19]} 48. h7 {[%emt 0:01:31] Intending Rg8 and mate.} Rh8 {[%emt 0:00:13]} 49. Rh5 {[%emt 0:00:00]} Kf6 {[%emt 0:00:06]} 50. Ke4 {[%emt 0:00:00]} Kg6 {[%emt 0:00:05][%csl LRh5,LRh7]} 51. Rh1 {[%emt 0:00:00]} Rxh7 {[%emt 0:00:04]} 52. Rxh7 {[%emt 0:00:00]} Kxh7 {[%emt 0:00:09]} 53. Kxe5 {[%emt 0:00:00] Weighted Error Value: White=0.09 (flawless) /Black=0.10 (very precise)} 1/2-1/2

[Event "Austrian Championship 2022"]
[Site "Vienna"]
[Date "2022.08.13"]
[Round "2.1"]
[White "Schroll, Gerhard"]
[Black "Blohberger, Felix"]
[Result "0-1"]
[ECO "A28"]
[WhiteElo "2281"]
[BlackElo "2492"]
[Annotator "TA"]
[PlyCount "34"]
[EventDate "2022.08.12"]
[EventType "swiss"]
[EventCountry "AUT"]
[SourceTitle "playchess.com"]
[Source "ChessBase"]
[SourceQuality "1"]
[TimeControl "40/5400+30:1800+30"]

{[%evp 11,34,-9,-9,-58,-46,-52,-54,-141,-125,-212,-163,-194,-119,-166,-131,-142,-152,-138,-136,-661,-637,-29984,-29985,-29980,-29981]} 1. c4 {[%emt 0:02:55]} Nf6 {[%emt 0:01:59]} 2. Nc3 {[%emt 0:00:26]} e5 {[%emt 0:00:17][%cal Be7e5,Be5e4][%mdl 32]} 3. e3 {[%emt 0:04:03]} Nc6 {[%emt 0:01:03]} 4. Nf3 {[%emt 0:01:42]} Bb4 {[%emt 0:00:07]} 5. Nd5 {[%emt 0:02:46]} e4 {[%emt 0:00:15]} 6. Nxb4 {[%emt 0:01:00]} Nxb4 {[%emt 0:00:08]} 7. Qb3 {[%emt 0:00:50] A28: English Opening: Four Knights Variation.} (7. a3 $11) 7... c5 $15 {[%emt 0:03:17] [#]} 8. Ng1 $146 {[%emt 0:04:19]} ({Predecessor:} 8. Ng5 h6 9. Nh3 d5 10. a3 Nc6 11. cxd5 Nxd5 12. Qc4 Bxh3 13. gxh3 O-O 14. Be2 Re8 15. Rg1 Nb6 16. Qxc5 Re5 17. Qc3 Rc8 18. b4 Nd5 19. Qb3 Rg5 20. Rg3 Ne5 {½-½ (20) Antoms,G (2350)-Neiksans,A (2596) Liepaja 2015}) 8... O-O {[%emt 0:01:15]} 9. f3 {[%emt 0:11:44]} ({White should try} 9. a3 $15 Nc6 10. d3) 9... d5 $17 {[%emt 0:08:20] Black is more active.} 10. cxd5 {[%emt 0:06:32]} (10. a3 $17 Nc6 11. cxd5 Nxd5 12. d3) 10... Bf5 {[%emt 0:05:44] aiming for ...exf3.} (10... Nbxd5 11. fxe4 Nb4 12. d3 $17) (10... Qxd5 11. Qxd5 Nfxd5 12. Kf2 $17) (10... Nfxd5 11. a3 Nc6 12. d3 $17) 11. a3 {[%emt 0:03:58] [#]} ({Don't blunder} 11. g4 $2 Nfxd5 $1 12. h4 (12. gxf5 $2 Qh4+ 13. Kd1 Qf2 $19) 12... Be6 $19) 11... Nbxd5 {[%emt 0:04:15]} ({Not} 11... Qxd5 12. Qxd5 Nbxd5 13. b3 $11) (11... Qa5 $1 $19 {Hoping for ...exf3.} 12. g4 Bg6) 12. Be2 {[%emt 0:06:27]} (12. Qxb7 $17 {was called for.} Nh5 13. Kf2) 12... Re8 $36 {[%emt 0:11:44][%mdl 2048] White is under strong pressure.} 13. fxe4 {[%emt 0:01:59]} Bxe4 {[%emt 0:03:52]} ({Weaker is} 13... Nxe4 14. Nf3 $17) 14. Nf3 {[%emt 0:02:58]} Qd6 {[%emt 0:03:25] And now ...Ng4 would win.} 15. Qa2 $2 {[%emt 0:06:42][%mdl 8192] [#]} (15. O-O $17) 15... Nf4 $1 $19 {[%emt 0:00:56][%mdl 512]} 16. exf4 {[%emt 0:00:24]} (16. Qc4 Nxg2+) 16... Bxf3 {[%emt 0:01:58]} 17. gxf3 {[%emt 0:06:18]} Qd3 {[%emt 0:00:07] Weighted Error Value: White=1.44/Black=0.15 (very precise)} 0-1